[Event "FIDE World School-ch O-11 2025"]
[Site "Vrnjacka Banja"]
[Date "2025.03.20"]
[Round "1.1"]
[White "Acheampong Jedidiah Nana Osei"]
[Black "Uzdemir, Ali Poyraz"]
[Result "0-1"]
[Annotator "NA RC"]
[ECO "B20"]
[WhiteElo "1670"]
[BlackElo "2184"]
[PlyCount "80"]
[EventDate "2025.03.19"]
[EventType "swiss"]
[EventCountry "SRB"]
[SourceTitle "playchess.com"]
[Source "ChessBase"]
[SourceQuality "1"]
[TimeControl "5400+30"]

1. e4 {[%emt 0:00:05]} c5 {[%emt 0:00:07]} 2. Bc4 {[%emt 0:00:26]} e6 {[%emt 0:00:04]} 3. d3 {[%emt 0:00:15]} d5 {[%emt 0:00:03]} 4. exd5 {[%emt 0:00:31]} exd5 {[%emt 0:00:05]} 5. Bb3 {[%emt 0:00:34]} Nf6 {[%emt 0:00:08]} 6. h3 {[%emt 0:00:22]} Nc6 {[%emt 0:00:15]} 7. a3 {[%emt 0:00:52]} Bd6 {[%emt 0:00:25]} 8. Ne2 {[%emt 0:01:40]} O-O {[%emt 0:00:27]} 9. O-O {[%emt 0:00:27]} Be6 {[%emt 0:00:52]} 10. Bg5 {[%emt 0:00:58]} h6 {[%emt 0:07:51]} 11. Bh4 {[%emt 0:00:31]} Ne5 {[%emt 0:13:10]} 12. Nd2 {[%emt 0:01:52]} Ng6 {[%emt 0:00:16]} 13. Bg3 {[%emt 0:01:24]} Bxg3 {[%emt 0:01:59]} 14. Nxg3 {[%emt 0:00:11]} Qc7 {[%emt 0:00:19]} 15. Nf3 {[%emt 0:02:27]} Rad8 {[%emt 0:03:54]} 16. Qd2 {[%emt 0:01:27]} Rfe8 {[%emt 0:04:44]} 17. Rfe1 {[%emt 0:02:03]} Qf4 {[%emt 0:06:52]} 18. Qxf4 {[%emt 0:01:29]} Nxf4 {[%emt 0:00:06]} 19. Ne2 {[%emt 0:00:53]} Ng6 {[%emt 0:03:32]} 20. Ng3 {[%emt 0:01:03]} b5 {[%emt 0:06:26]} 21. Rad1 {[%emt 0:02:02]} Nd7 {[%emt 0:02:38]} 22. c3 {[%emt 0:01:19]} Nf4 {[%emt 0:07:47]} 23. Ne2 {[%emt 0:01:24]} Nxe2+ {[%emt 0:03:10]} 24. Rxe2 {[%emt 0:01:20]} a5 {[%emt 0:01:54]} 25. Ree1 {[%emt 0:04:05]} Nf6 {[%emt 0:02:12]} 26. Rc1 {[%emt 0:06:57]} Bf5 {[%emt 0:02:05]} 27. Rcd1 {[%emt 0:01:42]} Rxe1+ {[%emt 0:05:07]} 28. Nxe1 {[%emt 0:00:12]} Re8 {[%emt 0:00:04]} 29. Kf1 {[%emt 0:00:22]} c4 {[%emt 0:02:07]} 30. dxc4 {[%emt 0:01:17]} bxc4 {[%emt 0:00:06]} 31. Bc2 {[%emt 0:00:37]} Rxe1+ {[%emt 0:00:48]} 32. Rxe1 {[%emt 0:00:07]} Bxc2 {[%emt 0:00:05]} 33. g3 {[%emt 0:05:16]} Be4 {[%emt 0:01:01]} 34. f4 {[%emt 0:01:53]} Kf8 {[%emt 0:00:14]} 35. Kf2 {[%emt 0:00:53]} Ke7 {[%emt 0:00:12]} 36. g4 {[%emt 0:01:57]} Kd6 {[%emt 0:01:29]} 37. Rc1 {[%emt 0:01:18]} Nd7 {[%emt 0:00:11]} 38. Ke3 {[%emt 0:57:19]} Nc5 {[%emt 0:01:09]} 39. Re1 {[%emt 0:00:00]} Nd3 {[%emt 0:01:37]} 40. Re2 {[%emt 0:00:00]} f5 {[%emt 0:02:22]} 0-1

[Event "FIDE World School-ch O-11 2025"]
[Site "Vrnjacka Banja"]
[Date "2025.03.20"]
[Round "1.2"]
[White "Lishoy Gengis Paratazham, Dildarav"]
[Black "Bilic, Mihajlo"]
[Result "1-0"]
[Annotator "NA RC"]
[ECO "C55"]
[WhiteElo "2071"]
[BlackElo "1664"]
[PlyCount "131"]
[EventDate "2025.03.19"]
[EventType "swiss"]
[EventCountry "SRB"]
[SourceTitle "playchess.com"]
[Source "ChessBase"]
[SourceQuality "1"]
[TimeControl "5400+30"]

1. e4 {[%emt 0:00:04]} e5 {[%emt 0:00:30]} 2. Nf3 {[%emt 0:00:08]} Nc6 {[%emt 0:00:44]} 3. Bc4 {[%emt 0:00:08]} Nf6 {[%emt 0:01:18]} 4. d3 {[%emt 0:00:05]} Be7 {[%emt 0:01:10]} 5. c3 {[%emt 0:00:14]} O-O {[%emt 0:00:36]} 6. O-O {[%emt 0:00:11]} d6 {[%emt 0:02:00]} 7. Re1 {[%emt 0:03:41]} Re8 {[%emt 0:02:47]} 8. Nbd2 {[%emt 0:06:48]} Bf8 {[%emt 0:01:39]} 9. Nf1 {[%emt 0:10:29]} a6 {[%emt 0:04:15]} 10. Bb3 {[%emt 0:01:58]} Be6 {[%emt 0:01:11]} 11. Ng3 {[%emt 0:06:26]} Na5 {[%emt 0:02:01]} 12. Bc2 {[%emt 0:01:01]} c5 {[%emt 0:00:18]} 13. d4 {[%emt 0:10:05]} Qc7 {[%emt 0:03:28]} 14. d5 {[%emt 0:09:11]} Bd7 {[%emt 0:01:44]} 15. b3 {[%emt 0:03:48]} b5 {[%emt 0:00:21]} 16. Bd2 {[%emt 0:01:18]} Nb7 {[%emt 0:01:03]} 17. c4 {[%emt 0:05:11]} b4 {[%emt 0:01:26]} 18. a3 {[%emt 0:01:29]} a5 {[%emt 0:00:49]} 19. a4 {[%emt 0:00:12]} g6 {[%emt 0:03:48]} 20. Qc1 {[%emt 0:00:58]} Bg7 {[%emt 0:01:36]} 21. Bh6 {[%emt 0:02:32]} Bg4 {[%emt 0:01:08]} 22. Nh4 {[%emt 0:02:48]} Qe7 {[%emt 0:02:30]} 23. Bxg7 {[%emt 0:07:25]} Kxg7 {[%emt 0:02:15]} 24. Qg5 {[%emt 0:00:49]} Kh8 {[%emt 0:02:06]} 25. h3 {[%emt 0:00:22]} Bd7 {[%emt 0:00:48]} 26. f4 {[%emt 0:04:31]} Ng8 {[%emt 0:04:18]} 27. Qxe7 {[%emt 0:01:56]} Rxe7 {[%emt 0:00:09]} 28. f5 {[%emt 0:01:16]} Rf8 {[%emt 0:02:04]} 29. Rf1 {[%emt 0:01:43]} Ree8 {[%emt 0:00:24]} 30. f6 {[%emt 0:03:50]} Nh6 {[%emt 0:03:15]} 31. Nf3 {[%emt 0:02:32]} Ng8 {[%emt 0:01:28]} 32. Nh4 {[%emt 0:02:32]} Nh6 {[%emt 0:00:18]} 33. Rf2 {[%emt 0:00:15]} Rg8 {[%emt 0:10:48]} 34. Raf1 {[%emt 0:01:15]} Nd8 {[%emt 0:02:05]} 35. Bd1 {[%emt 0:10:49]} Nb7 {[%emt 0:01:49]} 36. Kh1 {[%emt 0:00:00]} Nd8 {[%emt 0:00:48]} 37. Nf3 {[%emt 0:00:00]} g5 {[%emt 0:01:27]} 38. Nh2 {[%emt 0:00:00]} g4 {[%emt 0:03:39]} 39. hxg4 {[%emt 0:00:00]} Nxg4 {[%emt 0:00:13]} 40. Nxg4 {[%emt 0:00:00]} Bxg4 {[%emt 0:00:18]} 41. Nf5 {[%emt 0:00:00]} Bxf5 {[%emt 0:00:46]} 42. exf5 {[%emt 0:00:00]} Rg5 {[%emt 0:02:45]} 43. g4 {[%emt 0:00:00]} h5 {[%emt 0:03:47]} 44. Rh2 {[%emt 0:00:00]} Kg8 {[%emt 0:02:17]} 45. Kg2 {[%emt 0:00:18]} hxg4 {[%emt 0:02:35]} 46. Rfh1 {[%emt 0:00:06]} Kf8 {[%emt 0:00:22]} 47. Rh8+ {[%emt 0:00:52]} Rg8 {[%emt 0:00:08]} 48. Bxg4 {[%emt 0:00:32]} e4 {[%emt 0:01:15]} 49. Kf2 {[%emt 0:01:13]} e3+ {[%emt 0:00:20]} 50. Ke2 {[%emt 0:00:15]} Re4 {[%emt 0:00:29]} 51. Bf3 {[%emt 0:01:21]} Re5 {[%emt 0:00:41]} 52. R1h5 {[%emt 0:00:23]} Nb7 {[%emt 0:00:44]} 53. Kd3 {[%emt 0:00:56]} Nd8 {[%emt 0:00:44]} 54. Bg4 {[%emt 0:01:03]} Nb7 {[%emt 0:00:43]} 55. Ke2 {[%emt 0:00:41]} Nd8 {[%emt 0:00:20]} 56. R5h7 {[%emt 0:00:49]} Re4 {[%emt 0:01:08]} 57. Bh3 {[%emt 0:01:29]} Re5 {[%emt 0:00:23]} 58. Rh4 {[%emt 0:00:30]} Nb7 {[%emt 0:00:13]} 59. R8h6 {[%emt 0:00:27]} Ke8 {[%emt 0:02:04]} 60. Rh7 {[%emt 0:00:35]} Kf8 {[%emt 0:00:30]} 61. Rf4 {[%emt 0:00:47]} Rg3 {[%emt 0:00:40]} 62. Rh8+ {[%emt 0:00:28]} Rg8 {[%emt 0:00:12]} 63. Rh7 {[%emt 0:00:01]} Rg3 {[%emt 0:00:11]} 64. Rh5 {[%emt 0:01:05]} Nd8 {[%emt 0:00:34]} 65. Rf3 {[%emt 0:00:31]} Rxf3 {[%emt 0:00:21]} 66. Rh8# {[%emt 0:00:05]} 1-0

[Event "FIDE World School-ch O-11 2025"]
[Site "Vrnjacka Banja"]
[Date "2025.03.20"]
[Round "1.3"]
[White "Samaraweera S M Sethika Hansir"]
[Black "Ivanovic, Leonid"]
[Result "0-1"]
[Annotator "NA RC"]
[ECO "B50"]
[WhiteElo "1655"]
[BlackElo "2015"]
[PlyCount "122"]
[EventDate "2025.03.19"]
[EventType "swiss"]
[EventCountry "SRB"]
[SourceTitle "playchess.com"]
[Source "ChessBase"]
[SourceQuality "1"]
[TimeControl "5400+30"]

1. e4 {[%emt 0:00:19]} c5 {[%emt 0:00:26]} 2. Nf3 {[%emt 0:00:41]} d6 {[%emt 0:01:15]} 3. c3 {[%emt 0:00:02]} Nf6 {[%emt 0:00:07]} 4. h3 {[%emt 0:00:04]} Nc6 {[%emt 0:00:10]} 5. Bd3 {[%emt 0:01:46]} e5 {[%emt 0:01:06]} 6. c4 {[%emt 0:16:29]} Be7 {[%emt 0:02:28]} 7. Bc2 {[%emt 0:03:11]} h6 {[%emt 0:05:33]} 8. Nc3 {[%emt 0:03:08]} Nd7 {[%emt 0:05:43]} 9. Nd5 {[%emt 0:05:44]} Nf8 {[%emt 0:00:35]} 10. d3 {[%emt 0:02:01]} Ne6 {[%emt 0:01:34]} 11. Bd2 {[%emt 0:16:07]} Bg5 {[%emt 0:01:41]} 12. a3 {[%emt 0:03:04]} Bxd2+ {[%emt 0:01:25]} 13. Qxd2 {[%emt 0:01:48]} O-O {[%emt 0:01:09]} 14. O-O {[%emt 0:06:30]} Ned4 {[%emt 0:02:41]} 15. Nxd4 {[%emt 0:03:26]} Nxd4 {[%emt 0:00:12]} 16. f4 {[%emt 0:12:42]} exf4 {[%emt 0:01:30]} 17. Rxf4 {[%emt 0:01:12]} Qg5 {[%emt 0:00:59]} 18. Kh2 {[%emt 0:00:52]} Be6 {[%emt 0:02:18]} 19. Raf1 {[%emt 0:01:44]} Bxd5 {[%emt 0:01:15]} 20. cxd5 {[%emt 0:00:45]} Rae8 {[%emt 0:02:48]} 21. Qf2 {[%emt 0:03:12]} Qe5 {[%emt 0:01:28]} 22. Kh1 {[%emt 0:00:49]} f6 {[%emt 0:03:36]} 23. Bd1 {[%emt 0:02:39]} a5 {[%emt 0:01:45]} 24. Bg4 {[%emt 0:02:09]} b5 {[%emt 0:00:59]} 25. h4 {[%emt 0:02:37]} a4 {[%emt 0:02:03]} 26. g3 {[%emt 0:06:04]} Rb8 {[%emt 0:01:46]} 27. Bf5 {[%emt 0:02:29]} b4 {[%emt 0:00:16]} 28. g4 {[%emt 0:00:37]} g5 {[%emt 0:06:51]} 29. hxg5 {[%emt 0:01:25]} hxg5 {[%emt 0:00:16]} 30. Qh2 {[%emt 0:00:46]} Nxf5 {[%emt 0:00:03]} 31. Rxf5 {[%emt 0:00:26]} Qxh2+ {[%emt 0:00:07]} 32. Kxh2 {[%emt 0:00:06]} bxa3 {[%emt 0:01:20]} 33. bxa3 {[%emt 0:00:11]} Kg7 {[%emt 0:00:24]} 34. d4 {[%emt 0:00:56]} cxd4 {[%emt 0:01:29]} 35. Rd1 {[%emt 0:00:52]} Rb2+ {[%emt 0:01:23]} 36. Kg1 {[%emt 0:00:38]} Rb3 {[%emt 0:01:17]} 37. Rxd4 {[%emt 0:00:38]} Rxa3 {[%emt 0:00:02]} 38. Rb4 {[%emt 0:01:21]} Ra8 {[%emt 0:05:44]} 39. Rb7+ {[%emt 0:00:00]} Kg6 {[%emt 0:00:01]} 40. Re7 {[%emt 0:00:23]} Rg3+ {[%emt 0:02:06]} 41. Kf2 {[%emt 0:00:28]} Rxg4 {[%emt 0:00:04]} 42. Ke3 {[%emt 0:00:19]} Rf4 {[%emt 0:01:24]} 43. Rb7 {[%emt 0:00:35]} Rxf5 {[%emt 0:00:10]} 44. exf5+ {[%emt 0:00:05]} Kxf5 {[%emt 0:00:07]} 45. Rb2 {[%emt 0:00:03]} a3 {[%emt 0:00:05]} 46. Ra2 {[%emt 0:00:05]} Ke5 {[%emt 0:00:09]} 47. Kf3 {[%emt 0:00:05]} f5 {[%emt 0:00:07]} 48. Ke3 {[%emt 0:00:02]} Kxd5 {[%emt 0:00:04]} 49. Kd3 {[%emt 0:00:10]} g4 {[%emt 0:00:05]} 50. Kc2 {[%emt 0:00:07]} g3 {[%emt 0:00:09]} 51. Kb1 {[%emt 0:00:03]} f4 {[%emt 0:00:04]} 52. Rd2+ {[%emt 0:00:10]} Ke4 {[%emt 0:00:05]} 53. Ka2 {[%emt 0:00:08]} f3 {[%emt 0:00:06]} 54. Rxd6 {[%emt 0:00:22]} g2 {[%emt 0:00:07]} 55. Re6+ {[%emt 0:00:25]} Kd3 {[%emt 0:00:06]} 56. Rd6+ {[%emt 0:00:09]} Ke2 {[%emt 0:00:06]} 57. Re6+ {[%emt 0:00:15]} Kf2 {[%emt 0:00:01]} 58. Rd6 {[%emt 0:00:27]} g1=Q {[%emt 0:00:07]} 59. Rd1 {[%emt 0:00:04]} Qg8+ {[%emt 0:00:25]} 60. Ka1 {[%emt 0:00:04]} Qg7+ {[%emt 0:00:15]} 61. Ka2 {[%emt 0:00:22]} Qb2# {[%emt 0:00:02]} 0-1

[Event "FIDE World School-ch O-11 2025"]
[Site "Vrnjacka Banja"]
[Date "2025.03.20"]
[Round "1.4"]
[White "Adamovic, Nikola"]
[Black "Jevremovic, Filip"]
[Result "1-0"]
[Annotator "NA RC"]
[ECO "C43"]
[WhiteElo "1996"]
[BlackElo "1647"]
[PlyCount "67"]
[EventDate "2025.03.19"]
[EventType "swiss"]
[EventCountry "SRB"]
[SourceTitle "playchess.com"]
[Source "ChessBase"]
[SourceQuality "1"]
[TimeControl "5400+30"]

1. e4 {[%emt 0:00:06]} e5 {[%emt 0:00:06]} 2. Nf3 {[%emt 0:00:06]} Nf6 {[%emt 0:00:10]} 3. d4 {[%emt 0:00:14]} Nxe4 {[%emt 0:00:44]} 4. Bd3 {[%emt 0:00:14]} d5 {[%emt 0:01:06]} 5. Nxe5 {[%emt 0:00:10]} Bd6 {[%emt 0:00:50]} 6. Nc3 {[%emt 0:02:52]} Bb4 {[%emt 0:09:01]} 7. Bxe4 {[%emt 0:03:49]} dxe4 {[%emt 0:00:58]} 8. O-O {[%emt 0:00:32]} Bxc3 {[%emt 0:01:27]} 9. bxc3 {[%emt 0:00:15]} Nd7 {[%emt 0:01:22]} 10. Nxd7 {[%emt 0:01:06]} Bxd7 {[%emt 0:00:09]} 11. Ba3 {[%emt 0:00:11]} Qg5 {[%emt 0:01:11]} 12. Re1 {[%emt 0:03:21]} f5 {[%emt 0:04:22]} 13. Rb1 {[%emt 0:04:46]} O-O-O {[%emt 0:03:44]} 14. d5 {[%emt 0:04:58]} h5 {[%emt 0:05:39]} 15. Qd4 {[%emt 0:03:00]} Kb8 {[%emt 0:02:19]} 16. d6 {[%emt 0:00:36]} c6 {[%emt 0:02:33]} 17. Bc5 {[%emt 0:00:42]} a6 {[%emt 0:00:47]} 18. Bb6 {[%emt 0:00:36]} Rde8 {[%emt 0:00:40]} 19. Ba7+ {[%emt 0:00:26]} Ka8 {[%emt 0:00:59]} 20. Qb6 {[%emt 0:00:10]} Rb8 {[%emt 0:00:28]} 21. Bxb8 {[%emt 0:00:36]} Rxb8 {[%emt 0:00:11]} 22. Qc7 {[%emt 0:00:22]} Be6 {[%emt 0:00:12]} 23. d7 {[%emt 0:00:14]} h4 {[%emt 0:00:58]} 24. Rxb7 {[%emt 0:00:23]} Rxb7 {[%emt 0:01:16]} 25. d8=Q+ {[%emt 0:00:12]} Qxd8 {[%emt 0:00:10]} 26. Qxd8+ {[%emt 0:00:03]} Rb8 {[%emt 0:00:13]} 27. Qxh4 {[%emt 0:00:21]} Bxa2 {[%emt 0:00:13]} 28. Ra1 {[%emt 0:00:44]} a5 {[%emt 0:00:15]} 29. h3 {[%emt 0:00:16]} Bc4 {[%emt 0:00:07]} 30. Rxa5+ {[%emt 0:00:06]} Kb7 {[%emt 0:00:10]} 31. Qe7+ {[%emt 0:00:07]} Kc8 {[%emt 0:00:37]} 32. Ra7 {[%emt 0:00:07]} Rb1+ {[%emt 0:00:21]} 33. Kh2 {[%emt 0:00:02]} Rb7 {[%emt 0:00:15]} 34. Qxb7+ {[%emt 0:00:05]} 1-0

[Event "FIDE World School-ch O-11 2025"]
[Site "Vrnjacka Banja"]
[Date "2025.03.20"]
[Round "1.5"]
[White "Pak, Yuriy"]
[Black "Perunovic, Uros"]
[Result "1-0"]
[Annotator "NA RC"]
[ECO "C77"]
[WhiteElo "1625"]
[BlackElo "1986"]
[PlyCount "95"]
[EventDate "2025.03.19"]
[EventType "swiss"]
[EventCountry "SRB"]
[SourceTitle "playchess.com"]
[Source "ChessBase"]
[SourceQuality "1"]
[TimeControl "5400+30"]

1. e4 {[%emt 0:00:05]} e5 {[%emt 0:00:14]} 2. Nf3 {[%emt 0:00:07]} Nc6 {[%emt 0:00:18]} 3. Bb5 {[%emt 0:00:10]} a6 {[%emt 0:00:11]} 4. Ba4 {[%emt 0:00:07]} Nf6 {[%emt 0:00:21]} 5. Nc3 {[%emt 0:00:27]} b5 {[%emt 0:01:10]} 6. Bb3 {[%emt 0:00:09]} Be7 {[%emt 0:00:19]} 7. d3 {[%emt 0:03:13]} d6 {[%emt 0:01:17]} 8. h3 {[%emt 0:02:10]} Na5 {[%emt 1:30:40]} 9. Be3 {[%emt 0:03:23]} Nxb3 {[%emt 0:00:00]} 10. axb3 {[%emt 0:00:24]} Bb7 {[%emt 0:00:00]} 11. Qd2 {[%emt 0:06:16]} c5 {[%emt 0:00:00]} 12. Ne2 {[%emt 0:07:52]} Qc7 {[%emt 0:00:00]} 13. c4 {[%emt 0:01:38]} b4 {[%emt 0:00:00]} 14. Ng3 {[%emt 0:01:11]} g6 {[%emt 0:00:00]} 15. Bh6 {[%emt 0:04:20]} O-O-O {[%emt 0:00:00]} 16. Nf1 {[%emt 0:14:00]} Nd7 {[%emt 0:00:00]} 17. Ne3 {[%emt 0:03:09]} Nb6 {[%emt 0:00:00]} 18. Nd5 {[%emt 0:05:08]} Nxd5 {[%emt 0:00:00]} 19. cxd5 {[%emt 0:00:13]} Bf8 {[%emt 0:00:00]} 20. Be3 {[%emt 0:03:50]} f5 {[%emt 0:00:00]} 21. Bg5 {[%emt 0:02:23]} Be7 {[%emt 0:00:00]} 22. Bxe7 {[%emt 0:00:21]} Qxe7 {[%emt 0:00:00]} 23. Ng5 {[%emt 0:00:57]} h6 {[%emt 0:00:00]} 24. Ne6 {[%emt 0:00:08]} Rdg8 {[%emt 0:00:00]} 25. Qc2 {[%emt 0:01:13]} Kb8 {[%emt 0:00:00]} 26. Qc4 {[%emt 0:00:56]} Qd7 {[%emt 0:00:00]} 27. Rxa6 {[%emt 0:05:12]} Bxa6 {[%emt 0:00:00]} 28. Qxa6 {[%emt 0:00:02]} Rh7 {[%emt 0:00:00]} 29. O-O {[%emt 0:00:28]} Qc8 {[%emt 0:00:26]} 30. Qxd6+ {[%emt 0:00:12]} Ka8 {[%emt 0:00:18]} 31. Ra1+ {[%emt 0:00:35]} Ra7 {[%emt 0:00:24]} 32. Nc7+ {[%emt 0:00:31]} Kb7 {[%emt 0:03:55]} 33. Qc6+ {[%emt 0:00:08]} Kb8 {[%emt 0:00:25]} 34. Na6+ {[%emt 0:00:27]} Rxa6 {[%emt 0:01:00]} 35. Rxa6 {[%emt 0:00:18]} Qxc6 {[%emt 0:00:55]} 36. Rxc6 {[%emt 0:00:02]} Rg7 {[%emt 0:04:09]} 37. Rxc5 {[%emt 0:00:10]} Ra7 {[%emt 0:00:09]} 38. Rb5+ {[%emt 0:00:06]} Kc7 {[%emt 0:01:52]} 39. Rxb4 {[%emt 0:00:02]} Ra1+ {[%emt 0:00:08]} 40. Kh2 {[%emt 0:00:01]} Rd1 {[%emt 0:00:16]} 41. Rc4+ {[%emt 0:00:10]} Kd7 {[%emt 0:02:33]} 42. Rc3 {[%emt 0:00:11]} Rd2 {[%emt 0:00:00]} 43. Kg3 {[%emt 0:01:34]} f4+ {[%emt 0:00:00]} 44. Kf3 {[%emt 0:00:17]} Rxb2 {[%emt 0:00:00]} 45. g3 {[%emt 0:00:39]} g5 {[%emt 0:00:00]} 46. h4 {[%emt 0:00:27]} gxh4 {[%emt 0:00:38]} 47. gxh4 {[%emt 0:00:01]} h5 {[%emt 0:00:11]} 48. d4 {[%emt 0:01:10]} 1-0

[Event "FIDE World School-ch O-11 2025"]
[Site "Vrnjacka Banja"]
[Date "2025.03.20"]
[Round "1.6"]
[White "Tulegen, Ramazan"]
[Black "Galimov, Zakhar M"]
[Result "1-0"]
[Annotator "NA RC"]
[ECO "D05"]
[WhiteElo "1973"]
[BlackElo "1619"]
[PlyCount "127"]
[EventDate "2025.03.19"]
[EventType "swiss"]
[EventCountry "SRB"]
[SourceTitle "playchess.com"]
[Source "ChessBase"]
[SourceQuality "1"]
[TimeControl "5400+30"]

1. d4 {[%emt 0:00:11]} d5 {[%emt 0:00:08]} 2. Nf3 {[%emt 0:01:11]} e6 {[%emt 0:00:06]} 3. e3 {[%emt 0:01:31]} Nf6 {[%emt 0:00:07]} 4. Bd3 {[%emt 0:00:07]} Bd6 {[%emt 0:00:10]} 5. b3 {[%emt 0:00:18]} O-O {[%emt 0:00:27]} 6. O-O {[%emt 0:00:12]} Ne4 {[%emt 0:00:14]} 7. Nbd2 {[%emt 0:05:09]} f5 {[%emt 0:01:37]} 8. Bb2 {[%emt 0:03:44]} Nd7 {[%emt 0:04:58]} 9. c4 {[%emt 0:04:41]} b6 {[%emt 0:05:14]} 10. cxd5 {[%emt 0:04:46]} exd5 {[%emt 0:00:06]} 11. Ne5 {[%emt 0:02:06]} Bxe5 {[%emt 0:03:36]} 12. dxe5 {[%emt 0:00:13]} Ndc5 {[%emt 1:19:47]} 13. Be2 {[%emt 0:10:05]} a5 {[%emt 0:00:00]} 14. f3 {[%emt 0:05:21]} Nxd2 {[%emt 0:00:00]} 15. Qxd2 {[%emt 0:00:08]} Bb7 {[%emt 0:00:00]} 16. Ba3 {[%emt 0:15:16]} Qe7 {[%emt 0:00:00]} 17. f4 {[%emt 0:03:47]} Rfd8 {[%emt 0:00:00]} 18. Rac1 {[%emt 0:03:43]} a4 {[%emt 0:00:00]} 19. Bxc5 {[%emt 0:09:34]} bxc5 {[%emt 0:00:00]} 20. Qc2 {[%emt 0:02:23]} axb3 {[%emt 0:00:00]} 21. axb3 {[%emt 0:00:08]} d4 {[%emt 0:00:00]} 22. exd4 {[%emt 0:06:14]} cxd4 {[%emt 0:00:00]} 23. Qxf5 {[%emt 0:01:03]} Ra2 {[%emt 0:00:00]} 24. Rf2 {[%emt 0:02:19]} Bd5 {[%emt 0:00:00]} 25. Qh3 {[%emt 0:07:08]} g6 {[%emt 0:00:00]} 26. Rcf1 {[%emt 0:02:48]} Kh8 {[%emt 0:00:00]} 27. Bd3 {[%emt 0:02:35]} Rxf2 {[%emt 0:00:00]} 28. Rxf2 {[%emt 0:00:05]} Qe6 {[%emt 0:00:00]} 29. f5 {[%emt 0:04:22]} Qxe5 {[%emt 0:00:00]} 30. fxg6 {[%emt 0:00:09]} Qe1+ {[%emt 0:00:00]} 31. Bf1 {[%emt 0:00:27]} Qe7 {[%emt 0:00:00]} 32. Rf7 {[%emt 0:01:16]} Qe3+ {[%emt 0:00:00]} 33. Qxe3 {[%emt 0:00:05]} dxe3 {[%emt 0:00:00]} 34. Rxh7+ {[%emt 0:00:05]} Kg8 {[%emt 0:00:00]} 35. Re7 {[%emt 0:00:07]} Bxb3 {[%emt 0:00:00]} 36. Rxe3 {[%emt 0:00:07]} Bc2 {[%emt 0:00:00]} 37. Rc3 {[%emt 0:00:12]} Bxg6 {[%emt 0:00:00]} 38. Rxc7 {[%emt 0:00:05]} Bf5 {[%emt 0:00:00]} 39. Rc5 {[%emt 0:00:29]} Bh3 {[%emt 0:00:00]} 40. gxh3 {[%emt 0:00:14]} Rd7 {[%emt 0:00:00]} 41. Kf2 {[%emt 0:00:14]} Kg7 {[%emt 0:00:00]} 42. Kg3 {[%emt 0:00:35]} Rd6 {[%emt 0:00:00]} 43. Be2 {[%emt 0:00:32]} Rd7 {[%emt 0:00:00]} 44. Bg4 {[%emt 0:00:08]} Re7 {[%emt 0:00:00]} 45. Kf4 {[%emt 0:00:21]} Kg6 {[%emt 0:00:00]} 46. Rc6+ {[%emt 0:00:08]} Kg7 {[%emt 0:00:00]} 47. Kg5 {[%emt 0:00:08]} Re8 {[%emt 0:00:00]} 48. Rc7+ {[%emt 0:00:06]} Kh8 {[%emt 0:00:00]} 49. Kh6 {[%emt 0:00:30]} Re6+ {[%emt 0:00:00]} 50. Kg5 {[%emt 0:00:09]} Re8 {[%emt 0:00:00]} 51. Bf5 {[%emt 0:00:14]} Rg8+ {[%emt 0:00:00]} 52. Bg6 {[%emt 0:01:13]} Rg7 {[%emt 0:00:00]} 53. Rc8+ {[%emt 0:00:32]} Rg8 {[%emt 0:00:00]} 54. Rc4 {[%emt 0:00:05]} Rb8 {[%emt 0:00:00]} 55. Kh6 {[%emt 0:01:13]} Rg8 {[%emt 0:00:00]} 56. Rc7 {[%emt 0:02:04]} Rg7 {[%emt 0:00:00]} 57. Bf7 {[%emt 0:01:29]} Rh7+ {[%emt 0:00:00]} 58. Kg6 {[%emt 0:01:21]} Rg7+ {[%emt 0:00:00]} 59. Kf6 {[%emt 0:00:23]} Rg2 {[%emt 0:00:00]} 60. Bg6 {[%emt 0:01:01]} Rf2+ {[%emt 0:00:00]} 61. Bf5 {[%emt 0:00:05]} Rg2 {[%emt 0:00:00]} 62. Rh7+ {[%emt 0:01:12]} Kg8 {[%emt 0:00:00]} 63. Rh4 {[%emt 0:00:09]} Rf2 {[%emt 0:00:00]} 64. Ra4 {[%emt 0:00:40]} 1-0

[Event "FIDE World School-ch O-11 2025"]
[Site "Vrnjacka Banja"]
[Date "2025.03.21"]
[Round "2.1"]
[White "Uzdemir, Ali Poyraz"]
[Black "Makhsatuly, Rakhim"]
[Result "1-0"]
[Annotator "TA"]
[ECO "B55"]
[WhiteElo "2184"]
[BlackElo "1817"]
[PlyCount "45"]
[EventDate "2025.03.19"]
[EventType "swiss"]
[EventCountry "SRB"]
[SourceTitle "playchess.com"]
[Source "ChessBase"]
[SourceQuality "1"]
[TimeControl "5400+30"]

{[%evp 13,45,20,22,22,18,8,18,0,0,7,0,0,0,0,45,-20,-19,-69,-77,-72,-58,-55,12,14,52,0,143,151,927,916,906,914,912,898]} 1. e4 {[%emt 0:00:04]} c5 {[%emt 0:00:03]} 2. Nf3 {[%emt 0:00:08]} d6 {[%emt 0:00:03]} 3. d4 {[%emt 0:00:06]} cxd4 {[%emt 0:00:02]} 4. Nxd4 {[%emt 0:00:07]} Nf6 {[%emt 0:00:08]} 5. f3 {[%emt 0:00:03]} e5 {[%emt 0:00:06]} 6. Nb3 {[%emt 0:00:16]} Be7 {[%emt 0:00:34]} 7. c4 {[%emt 0:00:34]} a5 {[%emt 0:00:32][%cal Ba7a5,Ba5a4][%mdl 32]} 8. Be3 {[%emt 0:06:43] B55: Sicilian: 2...d6 3 d4 cxd4 4 Nxd4 Nf6 5 f3.} a4 {[%emt 0:00:46]} 9. Nc1 {[%emt 0:00:45]} Be6 {[%emt 0:10:25]} 10. Be2 {[%emt 0:01:12] The position is equal.} Qa5+ {[%emt 0:05:28]} 11. Nc3 {[%emt 0:02:56]} O-O {[%emt 0:08:49]} 12. O-O {[%emt 0:00:11]} Rc8 {[%emt 0:03:33]} 13. Nd5 {[%emt 0:14:40]} Bxd5 $146 {[%emt 0:01:14]} (13... Nxd5 14. cxd5 Bd7 15. Nd3 Bb5 16. Qe1 Qa6 17. Rc1 Rxc1 18. Nxc1 Nd7 19. Bxb5 Qxb5 {0-1 Schoepe,H (2250)-Fischer,D (2338) GER DSF C02 f email 2016}) 14. exd5 {[%emt 0:00:18]} (14. cxd5 $14 Na6 15. Nd3) 14... Bd8 $11 {[%emt 0:06:27]} 15. Nd3 {[%emt 0:05:28]} (15. Kh1 $11) 15... Bb6 $1 $15 {[%emt 0:06:39]} (15... Rxc4 $6 16. Nxe5 Rc8 17. Nc4 Qxd5 18. Nxd6 $11) 16. c5 {[%emt 0:11:57]} Nxd5 {[%emt 0:16:55]} 17. Bf2 {[%emt 0:00:20]} dxc5 {[%emt 0:00:55]} ({Black should play} 17... Ba7 $15) 18. Nxe5 $11 {[%emt 0:01:38]} Rd8 {[%emt 0:04:49]} (18... c4 $5 19. Nxc4 Bxf2+ 20. Rxf2 Qc5 $11) 19. Qc2 {[%emt 0:15:22]} (19. Bc4 $14 Nc6 20. Nxf7 (20. Bxd5 $2 {perishes.} Nxe5 21. Re1 Ng6 $19) 20... Kxf7 21. Qd3 (21. Bxd5+ $2 Kf8 $17)) 19... Bc7 {[%emt 0:04:55]} (19... Nc6 $11 20. Nxc6 bxc6) 20. Nxf7 $1 $16 {[%emt 0:09:54] White is more active.} Bf4 $2 {[%emt 0:18:52] [#]} (20... Kxf7 $16 21. Bc4 (21. Qxh7 Qb4 $11) 21... Kf6) 21. Nxd8 $18 {[%emt 0:01:17] White is clearly winning.} Qxd8 {[%emt 0:00:33]} 22. Rad1 {[%emt 0:27:31]} Nc6 {[%emt 0:01:13]} 23. Rxd5 {[%emt 0:00:00] Weighted Error Value: White=0.16 (very precise) /Black=0.52  Loses game:     	---       	Black=1      Mistake:       	White=3     	Black=2      Inaccurate:     	---       	Black=2      OK:         	White=4     	Black=5      Best:        	White=2     	---        Strong:       	White=1     	Black=1} 1-0